[Event "WYCC 2018 O16"]
[Site "Halkidiki"]
[Date "2018.10.30"]
[Round "11"]
[White "Vatsal Singhania"]
[Black "Peng, Hongchi"]
[Result "1/2-1/2"]
[ECO "A05"]
[WhiteElo "2128"]
[BlackElo "2273"]
[Annotator "NA"]
[PlyCount "183"]
[EventDate "2018.10.20"]
[EventType "swiss"]
[EventCountry "GRE"]
[SourceTitle "playchess.com"]
[Source "ChessBase"]
[SourceQuality "1"]
[TimeControl "40/5400+30:1800+30"]

1. Nf3 {[%emt 0:00:00]} Nf6 {[%emt 0:00:00]} 2. g3 {[%emt 0:00:00]} g6 {[%emt 0:00:00]} 3. Bg2 {[%emt 0:00:00]} Bg7 {[%emt 0:00:00]} 4. O-O {[%emt 0:00:00]} O-O {[%emt 0:00:00]} 5. d4 {[%emt 0:00:02]} d6 {[%emt 0:00:00]} 6. b3 {[%emt 0:00:07]} e5 {[%emt 0:00:00]} 7. Bb2 {[%emt 0:01:32] A49: 1 d4 Nf6 2 Nf3 g6 3 g3: Anti-King's Indian systems} Re8 {[%emt 0:00:14]} 8. dxe5 {[%emt 0:00:48]} Ng4 {[%emt 0:00:09]} 9. Nbd2 {[%emt 0:01:59]} Nc6 {[%emt 0:00:34]} 10. Nc4 $146 {[%emt 0:13:42]} ({Predecessor:} 10. Qc1 dxe5 11. h3 e4 12. Bxg7 Kxg7 13. hxg4 exf3 14. Bxf3 Ne5 15. Ne4 Bxg4 16. Qb2 Bf5 17. Kg2 {0-1 (47) Ginzburg,Y (2406)-Tseshkovsky,V (2564) Irkutsk 2010}) 10... d5 {[%emt 0:00:04]} 11. Ne3 {[%emt 0:03:22]} Nxe3 {[%emt 0:00:41]} 12. fxe3 {[%emt 0:00:05]} Bg4 {[%emt 0:00:58]} 13. Kh1 {[%emt 0:03:01]} Bxf3 {[%emt 0:02:35]} 14. exf3 {[%emt 0:02:57]} Bxe5 {[%emt 0:00:50]} 15. Bxe5 {[%emt 0:00:29]} Rxe5 {[%emt 0:00:02]} 16. Qd2 {[%emt 0:05:44]} Qe7 {[%emt 0:04:29]} 17. Rae1 {[%emt 0:00:07]} Re8 {[%emt 0:05:44]} 18. f4 {[%emt 0:00:55]} Rxe3 {[%emt 0:00:04]} 19. Rxe3 {[%emt 0:00:04]} Qxe3 {[%emt 0:00:01]} 20. Qxe3 {[%emt 0:00:06]} Rxe3 {[%emt 0:00:02]} 21. Bxd5 {[%emt 0:00:06]} Nb4 {[%emt 0:01:18]} 22. Bxb7 {[%emt 0:00:13]} Re2 {[%emt 0:00:02]} 23. Kg1 {[%emt 0:05:56]} Rxc2 {[%emt 0:01:18]} 24. a3 {[%emt 0:00:06]} Nd3 {[%emt 0:00:04]} 25. Be4 {[%emt 0:00:04]} Rd2 {[%emt 0:00:05]} 26. Bxd3 {[%emt 0:01:07]} Rxd3 {[%emt 0:00:01]} 27. b4 {[%emt 0:00:08]} Rc3 {[%emt 0:00:44]} 28. Kg2 {[%emt 0:00:31]} Kf8 {[%emt 0:01:19]} 29. Rf3 {[%emt 0:00:06]} Rc2+ {[%emt 0:00:02]} 30. Rf2 {[%emt 0:00:24]} Rc1 {[%emt 0:00:06]} 31. Re2 {[%emt 0:01:26]} Rc3 {[%emt 0:04:45]} 32. Re5 {[%emt 0:00:07]} Rxa3 {[%emt 0:01:02]} 33. Rc5 {[%emt 0:00:03]} Ke7 {[%emt 0:00:15]} 34. Rxc7+ {[%emt 0:00:05]} Ke6 {[%emt 0:00:07]} 35. h4 {[%emt 0:01:47]} h5 {[%emt 0:00:41]} 36. b5 {[%emt 0:00:25]} f6 {[%emt 0:00:33]} 37. Kh3 {[%emt 0:00:09]} Kf5 {[%emt 0:01:45]} 38. Rc4 {[%emt 0:01:25]} Rd3 {[%emt 0:02:24]} 39. Rc7 {[%emt 0:02:20]} Ra3 {[%emt 0:05:18]} 40. Rc4 {[%emt 0:00:00]} Ra1 {[%emt 0:00:00]} 41. Rb4 {[%emt 0:00:35]} Rh1+ {[%emt 0:02:48]} 42. Kg2 {[%emt 0:00:08]} Rd1 {[%emt 0:00:04]} 43. Kh3 {[%emt 0:00:14]} Rd6 {[%emt 0:00:10]} 44. Ra4 {[%emt 0:00:07]} Rd7 {[%emt 0:00:08]} 45. Ra5 {[%emt 0:00:29]} Ke4 {[%emt 0:01:47]} 46. Ra6 {[%emt 0:00:09]} Kf3 {[%emt 0:01:11]} 47. b6 {[%emt 0:02:50]} axb6 {[%emt 0:00:28]} 48. Rxb6 {[%emt 0:00:03]} Rd1 {[%emt 0:00:54]} 49. Rb3+ {[%emt 0:00:04]} Kf2 {[%emt 0:00:56]} 50. Rb2+ {[%emt 0:01:08]} Ke3 {[%emt 0:03:15]} 51. Rb6 {[%emt 0:01:43]} Kf3 {[%emt 0:00:58]} 52. Rb3+ {[%emt 0:00:03]} Kf2 {[%emt 0:00:44]} 53. Rb2+ {[%emt 0:00:05]} Kg1 {[%emt 0:00:09]} 54. Ra2 {[%emt 0:00:04]} Re1 {[%emt 0:01:56]} 55. Rb2 Kf1 {[%emt 0:02:16]} 56. Ra2 {[%emt 0:00:46]} Re2 {[%emt 0:01:06]} 57. Ra1+ {[%emt 0:00:02]} Kf2 {[%emt 0:00:12]} 58. Rb1 {[%emt 0:00:06]} Kf3 {[%emt 0:01:29]} 59. Rb6 {[%emt 0:01:03]} Kf2 {[%emt 0:00:27]} 60. Rb1 {[%emt 0:00:03]} Re3 {[%emt 0:00:21]} 61. Rb2+ {[%emt 0:00:03]} Kf3 {[%emt 0:00:37]} 62. Rb6 {[%emt 0:00:05]} Kf2 {[%emt 0:01:37]} 63. Rb2+ {[%emt 0:00:03]} Re2 {[%emt 0:00:30]} 64. Rb1 {[%emt 0:01:15]} Ra2 {[%emt 0:00:26]} 65. Rc1 {[%emt 0:00:51]} Ra3 {[%emt 0:00:28]} 66. Rc2+ {[%emt 0:00:06]} Kf3 {[%emt 0:00:06]} 67. Rb2 {[%emt 0:00:10]} Rc3 {[%emt 0:00:36]} 68. Ra2 {[%emt 0:00:05]} Rc1 {[%emt 0:00:31]} 69. Ra3+ {[%emt 0:00:04]} Kf2 {[%emt 0:00:07]} 70. Ra2+ {[%emt 0:00:01]} Kf1 {[%emt 0:00:10]} 71. Rb2 {[%emt 0:00:05]} Kg1 {[%emt 0:00:57]} 72. Ra2 {[%emt 0:00:04]} Rc3 {[%emt 0:00:50]} 73. Rb2 {[%emt 0:00:06]} f5 {[%emt 0:00:22]} 74. Ra2 {[%emt 0:00:04]} Re3 {[%emt 0:00:08]} 75. Rb2 {[%emt 0:00:06]} Kf1 {[%emt 0:00:05]} 76. Ra2 {[%emt 0:00:11]} Re2 {[%emt 0:00:10]} 77. Ra1+ {[%emt 0:00:02]} Kf2 {[%emt 0:00:07]} 78. Ra6 {[%emt 0:00:20]} Rd2 {[%emt 0:00:50]} 79. Ra1 {[%emt 0:00:06]} Re2 {[%emt 0:00:09]} 80. Ra6 {[%emt 0:00:04]} Kf1 {[%emt 0:00:06]} 81. Ra1+ {[%emt 0:00:04]} Re1 {[%emt 0:00:24]} 82. Ra2 {[%emt 0:00:52]} Rb1 {[%emt 0:00:50]} 83. Rc2 {[%emt 0:00:21]} Kg1 {[%emt 0:00:28]} 84. Ra2 {[%emt 0:00:03]} Rb3 {[%emt 0:00:07]} 85. Rc2 {[%emt 0:00:04]} Re3 {[%emt 0:00:08]} 86. Ra2 {[%emt 0:00:04]} Kf1 {[%emt 0:00:05]} 87. Rb2 {[%emt 0:00:02]} Re2 {[%emt 0:00:06]} 88. Rb1+ {[%emt 0:00:02]} Kf2 {[%emt 0:00:03]} 89. Ra1 {[%emt 0:00:03]} Kf3 {[%emt 0:00:13]} 90. Ra3+ {[%emt 0:00:04]} Re3 $11 {[%emt 0:00:04]} 91. Ra6 {[%emt 0:00:10]} Re1 {[%emt 0:00:40]} 92. Ra3+ {[%emt 0:00:02]} 1/2-1/2

[Event "WYCC 2018 O16"]
[Site "Halkidiki"]
[Date "2018.10.30"]
[Round "11"]
[White "Carlsson, Ludvig"]
[Black "Lund, Gunnar"]
[Result "1/2-1/2"]
[ECO "E06"]
[WhiteElo "2058"]
[BlackElo "2227"]
[Annotator "NA"]
[PlyCount "152"]
[EventDate "2018.10.20"]
[EventType "swiss"]
[EventCountry "GRE"]
[SourceTitle "playchess.com"]
[Source "ChessBase"]
[SourceQuality "1"]
[TimeControl "40/5400+30:1800+30"]

1. Nf3 {[%emt 0:00:00]} Nf6 {[%emt 0:00:00]} 2. c4 {[%emt 0:00:00]} e6 {[%emt 0:00:00]} 3. g3 {[%emt 0:00:00]} d5 {[%emt 0:00:00]} 4. d4 {[%emt 0:00:05]} Be7 {[%emt 0:00:01]} 5. Bg2 {[%emt 0:00:07]} O-O {[%emt 0:00:07]} 6. O-O {[%emt 0:00:08]} dxc4 {[%emt 0:00:04]} 7. Qc2 {[%emt 0:00:14]} a6 {[%emt 0:00:06]} 8. Qxc4 {[%emt 0:00:07]} b5 {[%emt 0:00:05]} 9. Qc2 {[%emt 0:00:07]} Bb7 {[%emt 0:00:06]} 10. Bg5 {[%emt 0:00:07]} Nbd7 {[%emt 0:04:27]} 11. Nbd2 {[%emt 0:00:12]} Rc8 {[%emt 0:00:54]} 12. Bxf6 {[%emt 0:00:28]} Nxf6 {[%emt 0:00:31]} 13. Nb3 {[%emt 0:00:13]} Be4 {[%emt 0:13:16]} 14. Qc1 {[%emt 0:05:24]} c5 {[%emt 0:10:48]} 15. dxc5 {[%emt 0:00:09] E05: Open Catalan: 5 Nf3 Be7} Qc7 {[%emt 0:01:01] LiveBook: 23 Games} 16. Qf4 {[%emt 0:00:10] [#]} (16. Rd1 a5 17. c6 Bxc6 18. Nfd4 Bxg2 19. Qxc7 Rxc7 20. Kxg2 a4 21. Nxb5 Rb7 22. N3d4 Bc5 {½-½ (45) Harikrishna,P (2755)-So,W (2822) Shamkir 2017}) 16... Bxc5 $146 {[%emt 0:05:15]} ({Predecessor:} 16... Qxf4 17. gxf4 Bxc5 18. Ne5 Bd6 19. Bxe4 Nxe4 20. Rfc1 g5 21. f3 Nf6 22. Nc6 gxf4 {0-1 (69) Orlinkov,M (2399)-Tunik,G (2503) St Petersburg 2002}) 17. Nxc5 {[%emt 0:02:56]} Qxc5 {[%emt 0:05:25]} 18. Rac1 {[%emt 0:00:36]} Qd5 {[%emt 0:00:58]} 19. Rxc8 {[%emt 0:02:06]} Rxc8 {[%emt 0:00:08]} 20. Rc1 {[%emt 0:00:05]} Rd8 {[%emt 0:03:13]} 21. Qc7 {[%emt 0:04:45]} h6 {[%emt 0:02:28]} 22. Ne5 {[%emt 0:06:55]} Rf8 {[%emt 0:05:16]} 23. Bh3 {[%emt 0:00:44]} Bf5 {[%emt 0:14:16]} 24. Bxf5 {[%emt 0:00:17]} exf5 {[%emt 0:00:02]} 25. b3 {[%emt 0:02:29]} Qe4 {[%emt 0:01:37]} 26. e3 {[%emt 0:01:53]} Nd5 {[%emt 0:02:55]} 27. Qd6 {[%emt 0:02:35]} Nxe3 {[%emt 0:00:57]} 28. f3 {[%emt 0:00:06]} Qa8 {[%emt 0:02:52]} 29. Nc6 {[%emt 0:05:49]} Kh8 {[%emt 0:07:30]} 30. Kf2 {[%emt 0:03:32]} Re8 {[%emt 0:06:09]} (30... f4 $11) 31. Nd4 {[%emt 0:09:17]} (31. Qd7 $16) 31... Rd8 {[%emt 0:04:21]} 32. Qe5 {[%emt 0:01:01]} Re8 {[%emt 0:02:15]} 33. Qc5 {[%emt 0:02:12]} f4 {[%emt 0:00:59]} 34. gxf4 {[%emt 0:00:54]} Nd5 {[%emt 0:00:49]} 35. Kg3 {[%emt 0:01:00]} Nf6 {[%emt 0:01:58]} 36. Qc6 {[%emt 0:01:14]} Qb8 {[%emt 0:00:57]} 37. Qc7 {[%emt 0:00:16]} Qa8 {[%emt 0:00:39]} 38. Qxf7 {[%emt 0:00:46]} Rf8 {[%emt 0:00:00]} 39. Qg6 {[%emt 0:00:12]} Qd5 {[%emt 0:04:04]} 40. Nf5 {[%emt 0:00:00]} Nh5+ {[%emt 0:00:00]} 41. Qxh5 {[%emt 0:02:51]} Rxf5 {[%emt 0:02:39]} 42. Qg6 {[%emt 0:00:49]} Rf8 {[%emt 0:01:01]} 43. Qe4 {[%emt 0:13:06]} Qd2 {[%emt 0:04:50]} 44. Rc2 {[%emt 0:00:08]} Qd1 {[%emt 0:00:29]} 45. Kh3 {[%emt 0:00:08]} Qd7+ {[%emt 0:00:09]} 46. Kg3 {[%emt 0:00:41]} Qd1 {[%emt 0:00:53]} 47. Rg2 {[%emt 0:00:50]} Qd7 {[%emt 0:00:29]} 48. Re2 {[%emt 0:00:32]} Qf7 {[%emt 0:00:45]} 49. Rd2 {[%emt 0:01:18]} Re8 {[%emt 0:00:39]} 50. Qd5 {[%emt 0:00:51]} Qg6+ {[%emt 0:00:09]} 51. Kf2 {[%emt 0:04:59]} Qf6 {[%emt 0:01:52]} 52. Qd4 {[%emt 0:03:00]} Qh4+ {[%emt 0:00:14]} 53. Kg2 {[%emt 0:00:06]} Rf8 {[%emt 0:00:54]} 54. Re2 {[%emt 0:00:07]} Rf6 {[%emt 0:03:36]} 55. Re4 {[%emt 0:03:01]} Rg6+ {[%emt 0:00:11]} 56. Kh1 {[%emt 0:00:07]} Qh3 {[%emt 0:00:52]} 57. Qf2 {[%emt 0:00:06]} Rc6 {[%emt 0:01:35]} 58. Re1 {[%emt 0:00:49]} Rc3 {[%emt 0:01:23]} 59. Qg2 {[%emt 0:02:46]} Qxf3 {[%emt 0:01:18]} 60. Qxf3 {[%emt 0:00:07]} Rxf3 {[%emt 0:00:05]} 61. Re6 {[%emt 0:00:03]} Rxf4 {[%emt 0:00:30]} 62. Rxa6 {[%emt 0:00:06]} Rf2 {[%emt 0:00:05]} 63. Kg1 {[%emt 0:02:12]} Rb2 {[%emt 0:00:18]} 64. Rb6 {[%emt 0:00:12]} Rxa2 {[%emt 0:00:10]} 65. Rxb5 {[%emt 0:00:04]} Rb2 {[%emt 0:00:06]} 66. Rb6 {[%emt 0:00:28]} Kh7 {[%emt 0:00:08]} 67. b4 {[%emt 0:00:33]} h5 {[%emt 0:00:04]} 68. Rb5 {[%emt 0:00:14]} Kh6 {[%emt 0:00:13]} 69. Rb7 {[%emt 0:00:29]} h4 {[%emt 0:00:20]} 70. b5 {[%emt 0:00:26]} h3 {[%emt 0:00:12]} 71. Rb6+ {[%emt 0:00:53]} Kh7 {[%emt 0:00:11]} 72. Rb8 {[%emt 0:00:16]} Rg2+ {[%emt 0:00:02]} 73. Kh1 {[%emt 0:00:11]} Rb2 {[%emt 0:00:01]} 74. Kg1 {[%emt 0:01:26]} Rg2+ {[%emt 0:00:30]} 75. Kh1 {[%emt 0:00:04]} Rf2 {[%emt 0:01:09]} 76. Kg1 {[%emt 0:00:08]} Rg2+ $11 {[%emt 0:00:20]} 1/2-1/2

[Event "WYCC 2018 O16"]
[Site "Halkidiki"]
[Date "2018.10.30"]
[Round "11"]
[White "Kim, Yunseo"]
[Black "Ongut, Tamas Gunes"]
[Result "1/2-1/2"]
[ECO "C92"]
[WhiteElo "1995"]
[BlackElo "2185"]
[Annotator "NA"]
[PlyCount "68"]
[EventDate "2018.10.20"]
[EventType "swiss"]
[EventCountry "GRE"]
[SourceTitle "playchess.com"]
[Source "ChessBase"]
[SourceQuality "1"]
[TimeControl "40/5400+30:1800+30"]

1. e4 {[%emt 0:00:00]} e5 {[%emt 0:00:00]} 2. Nf3 {[%emt 0:00:00]} Nc6 {[%emt 0:00:00]} 3. Bb5 {[%emt 0:00:00]} a6 {[%emt 0:00:06]} 4. Ba4 {[%emt 0:00:07]} Nf6 {[%emt 0:00:24]} 5. O-O {[%emt 0:00:09]} Be7 {[%emt 0:02:51]} 6. Re1 {[%emt 0:00:19]} b5 {[%emt 0:00:08]} 7. Bb3 {[%emt 0:00:05]} O-O {[%emt 0:02:20]} 8. c3 {[%emt 0:00:43]} d6 {[%emt 0:02:08]} 9. h3 {[%emt 0:00:21]} Bb7 {[%emt 0:00:33]} 10. d4 {[%emt 0:00:31]} Nd7 {[%emt 0:01:30]} 11. Nbd2 {[%emt 0:01:33]} exd4 {[%emt 0:01:48]} 12. cxd4 {[%emt 0:00:08]} Bf6 {[%emt 0:00:14]} 13. Nf1 {[%emt 0:01:45]} Na5 {[%emt 0:02:07]} 14. Bc2 {[%emt 0:00:15]} c5 {[%emt 0:00:06]} 15. d5 {[%emt 0:02:00]} Re8 {[%emt 0:00:10]} 16. Ne3 {[%emt 0:07:32]} Ne5 {[%emt 0:05:08]} 17. Nh2 {[%emt 0:13:08]} Nac4 {[%emt 0:01:40]} 18. Rb1 {[%emt 0:03:41]} Nxe3 $11 {[%emt 0:03:31]} 19. Bxe3 {[%emt 0:01:26]} Bc8 {[%emt 0:07:34]} 20. b3 {[%emt 0:04:46]} g6 {[%emt 0:14:01]} 21. f4 {[%emt 0:04:21]} Nd7 {[%emt 0:00:01]} 22. Nf3 {[%emt 0:02:07]} a5 {[%emt 0:01:53]} 23. Bf2 {[%emt 0:03:32]} Bg7 {[%emt 0:08:05]} 24. Bg3 {[%emt 0:06:15]} f6 {[%emt 0:08:10]} 25. Bd3 {[%emt 0:07:44]} Qb6 {[%emt 0:00:21]} 26. Kh1 {[%emt 0:01:15]} Bb7 {[%emt 0:02:00]} 27. a4 {[%emt 0:05:03]} c4 {[%emt 0:01:18]} 28. bxc4 {[%emt 0:01:23]} b4 {[%emt 0:00:02]} 29. Qc2 {[%emt 0:11:27]} Ba6 {[%emt 0:03:14]} 30. Bf2 {[%emt 0:00:42]} Qc7 {[%emt 0:00:55]} 31. Nd4 {[%emt 0:05:19]} Nc5 {[%emt 0:00:25]} 32. Nb5 {[%emt 0:01:45]} Bxb5 {[%emt 0:05:40]} 33. cxb5 {[%emt 0:00:08]} Rac8 {[%emt 0:00:07]} 34. Bxc5 {[%emt 0:01:00]} dxc5 {[%emt 0:00:24]} 1/2-1/2